[Event "Titled Tuesday Blitz May 10 Late 2022"]
[White "Alexiadis, Hristos"]
[Black "Nilsson, Joakim"]
[WhiteFideId "4249623"]
[BlackFideId "1723383"]
[WhiteElo "2416"]
[BlackElo "2210"]
[Result "1-0"]
[Round "01"]
[TimeControl "180+1"]
[Date "2022.05.11"]
[WhiteClock "0:02:17"]
[BlackClock "0:02:39"]

1. e4 {[%clk 0:02:58]}  c5 {[%clk 0:02:58]} 2. Nf3 {[%clk 0:02:57]}  a6 {[%clk 0:02:57]} 3. c3 {[%clk 0:02:54]}  Nf6 {[%clk 0:02:57]} 4. d3 {[%clk 0:02:51]}  Nc6 {[%clk 0:02:55]} 5. g3 {[%clk 0:02:51]}  d6 {[%clk 0:02:55]} 6. Bg2 {[%clk 0:02:52]}  g6 {[%clk 0:02:54]} 7. O-O {[%clk 0:02:51]}  Bg7 {[%clk 0:02:53]} 8. Re1 {[%clk 0:02:51]}  O-O {[%clk 0:02:53]} 9. Nbd2 {[%clk 0:02:52]}  e5 {[%clk 0:02:52]} 10. a3 {[%clk 0:02:52]}  Ne8 {[%clk 0:02:50]} 11. b4 {[%clk 0:02:52]}  b6 {[%clk 0:02:49]} 12. Nc4 {[%clk 0:02:50]}  b5 {[%clk 0:02:48]} 13. Ne3 {[%clk 0:02:49]}  Be6 {[%clk 0:02:48]} 14. Nd5 {[%clk 0:02:43]}  Rb8 {[%clk 0:02:46]} 15. Be3 {[%clk 0:02:39]}  cxb4 {[%clk 0:02:44]} 16. axb4 {[%clk 0:02:39]}  Ra8 {[%clk 0:02:43]} 17. Ra3 {[%clk 0:02:29]}  f5 {[%clk 0:02:43]} 18. Ng5 {[%clk 0:02:28]}  Bd7 {[%clk 0:02:41]} 19. exf5 {[%clk 0:02:23]}  gxf5 {[%clk 0:02:40]} 20. Nb6 {[%clk 0:02:23]}  Ra7 {[%clk 0:02:39]} 21. Nxd7 {[%clk 0:02:17]} 1-0


[Site "https://www.chess.com"]

[Event "Titled Tuesday Blitz May 10 Late 2022"]
[White "Andreikin, Dmitry"]
[Black "Karttunen, Mika"]
[WhiteFideId "4158814"]
[BlackFideId "502081"]
[WhiteElo "2736"]
[BlackElo "2343"]
[Result "1-0"]
[Round "01"]
[TimeControl "180+1"]
[Date "2022.05.10"]
[WhiteClock "0:01:46"]
[BlackClock "0:01:02"]

1. d4 {[%clk 0:03:00]}  Nf6 {[%clk 0:02:59]} 2. c4 {[%clk 0:03:01]}  g6 {[%clk 0:02:58]} 3. Nc3 {[%clk 0:03:00]}  d5 {[%clk 0:02:58]} 4. cxd5 {[%clk 0:03:00]}  Nxd5 {[%clk 0:02:58]} 5. e4 {[%clk 0:03:01]}  Nxc3 {[%clk 0:02:59]} 6. bxc3 {[%clk 0:03:02]}  Bg7 {[%clk 0:02:59]} 7. Be3 {[%clk 0:03:03]}  O-O {[%clk 0:02:58]} 8. Qd2 {[%clk 0:03:03]}  c5 {[%clk 0:02:58]} 9. Nf3 {[%clk 0:03:03]}  b6 {[%clk 0:02:52]} 10. Rc1 {[%clk 0:02:51]}  Bb7 {[%clk 0:02:51]} 11. Bd3 {[%clk 0:02:51]}  Qc7 {[%clk 0:02:48]} 12. Bf4 {[%clk 0:02:47]}  Qc8 {[%clk 0:02:46]} 13. O-O {[%clk 0:02:46]}  Nc6 {[%clk 0:02:45]} 14. d5 {[%clk 0:02:45]}  Na5 {[%clk 0:02:35]} 15. c4 {[%clk 0:02:45]}  Ba6 {[%clk 0:02:08]} 16. Bh6 {[%clk 0:02:40]}  Rd8 {[%clk 0:02:06]} 17. Bxg7 {[%clk 0:02:40]}  Kxg7 {[%clk 0:02:07]} 18. Qc3+ {[%clk 0:02:38]}  Kg8 {[%clk 0:02:07]} 19. h3 {[%clk 0:02:31]}  Qd7 {[%clk 0:02:02]} 20. Ne5 {[%clk 0:02:30]}  Qa4 {[%clk 0:01:56]} 21. Ng4 {[%clk 0:02:30]}  f6 {[%clk 0:01:55]} 22. e5 {[%clk 0:02:25]}  f5 {[%clk 0:01:46]} 23. Bxf5 {[%clk 0:02:19]}  gxf5 {[%clk 0:01:40]} 24. Nh6+ {[%clk 0:02:19]}  Kg7 {[%clk 0:01:23]} 25. Nxf5+ {[%clk 0:02:18]}  Kg6 {[%clk 0:01:23]} 26. Nh4+ {[%clk 0:02:13]}  Kh6 {[%clk 0:01:13]} 27. Nf5+ {[%clk 0:01:57]}  Kg6 {[%clk 0:01:13]} 28. Qg3+ {[%clk 0:01:51]}  Kxf5 {[%clk 0:01:02]} 29. Qg4+ {[%clk 0:01:51]}  Kxe5 {[%clk 0:01:02]} 30. Qe6+ {[%clk 0:01:51]}  Kf4 {[%clk 0:01:02]} 31. g3+ {[%clk 0:01:46]}  Kg5 {[%clk 0:01:01]} 32. h4+ {[%clk 0:01:46]}  Kh5 {[%clk 0:01:01]} 33. Qf5+ {[%clk 0:01:46]}  Kh6 {[%clk 0:01:02]} 34. Qg5# {[%clk 0:01:46]} 1-0


[Site "https://www.chess.com"]

[Event "Titled Tuesday Blitz May 10 Late 2022"]
[White "Baches Garcia, Guillermo"]
[Black "Paravyan, David"]
[WhiteFideId "2209764"]
[BlackFideId "4194985"]
[WhiteElo "2521"]
[BlackElo "2569"]
[Result "0-1"]
[Round "01"]
[TimeControl "180+1"]
[Date "2022.05.10"]
[WhiteClock "0:00:10"]
[BlackClock "0:00:10"]

1. e4 {[%clk 0:03:00]}  e5 {[%clk 0:02:59]} 2. Nf3 {[%clk 0:03:00]}  Nf6 {[%clk 0:03:00]} 3. Nc3 {[%clk 0:02:59]}  Nc6 {[%clk 0:02:59]} 4. d4 {[%clk 0:02:59]}  exd4 {[%clk 0:02:59]} 5. Nxd4 {[%clk 0:03:00]}  Bb4 {[%clk 0:02:58]} 6. Nxc6 {[%clk 0:03:01]}  bxc6 {[%clk 0:02:59]} 7. Bd3 {[%clk 0:03:01]}  O-O {[%clk 0:02:59]} 8. O-O {[%clk 0:03:01]}  d5 {[%clk 0:02:59]} 9. Bd2 {[%clk 0:03:01]}  Rb8 {[%clk 0:02:56]} 10. Re1 {[%clk 0:02:59]}  Bg4 {[%clk 0:02:54]} 11. Qc1 {[%clk 0:02:58]}  Re8 {[%clk 0:02:54]} 12. e5 {[%clk 0:02:45]}  Nd7 {[%clk 0:02:54]} 13. f4 {[%clk 0:02:45]}  Nc5 {[%clk 0:02:50]} 14. Ne2 {[%clk 0:02:28]}  Bxd2 {[%clk 0:02:19]} 15. Qxd2 {[%clk 0:02:28]}  Rxb2 {[%clk 0:02:18]} 16. Qe3 {[%clk 0:02:04]}  Nxd3 {[%clk 0:02:12]} 17. cxd3 {[%clk 0:02:03]}  Bxe2 {[%clk 0:01:40]} 18. Rxe2 {[%clk 0:02:01]}  d4 {[%clk 0:01:39]} 19. Qe4 {[%clk 0:01:55]}  Rxe2 {[%clk 0:01:39]} 20. Qxe2 {[%clk 0:01:56]}  Qd5 {[%clk 0:01:36]} 21. Rc1 {[%clk 0:01:43]}  f6 {[%clk 0:01:28]} 22. Re1 {[%clk 0:01:11]}  fxe5 {[%clk 0:01:26]} 23. fxe5 {[%clk 0:01:12]}  Re6 {[%clk 0:01:26]} 24. g3 {[%clk 0:01:10]}  c5 {[%clk 0:01:20]} 25. Qh5 {[%clk 0:01:04]}  h6 {[%clk 0:01:09]} 26. Qf5 {[%clk 0:01:01]}  Re8 {[%clk 0:00:50]} 27. a4 {[%clk 0:00:49]}  a5 {[%clk 0:00:45]} 28. Re4 {[%clk 0:00:34]}  Qe6 {[%clk 0:00:34]} 29. Qf3 {[%clk 0:00:26]}  Rd8 {[%clk 0:00:31]} 30. Qe2 {[%clk 0:00:24]}  c4 {[%clk 0:00:29]} 31. dxc4 {[%clk 0:00:23]}  d3 {[%clk 0:00:27]} 32. Qd2 {[%clk 0:00:22]}  Qc6 {[%clk 0:00:21]} 33. Rf4 {[%clk 0:00:16]}  Qc5+ {[%clk 0:00:20]} 34. Kg2 {[%clk 0:00:16]}  Qxe5 {[%clk 0:00:19]} 35. Rf2 {[%clk 0:00:12]}  Qe4+ {[%clk 0:00:20]} 36. Kg1 {[%clk 0:00:13]}  Qxc4 {[%clk 0:00:19]} 37. h4 {[%clk 0:00:12]}  Qd5 {[%clk 0:00:17]} 38. Kh2 {[%clk 0:00:12]}  Kh8 {[%clk 0:00:16]} 39. Rf4 {[%clk 0:00:11]}  c5 {[%clk 0:00:16]} 40. Qc3 {[%clk 0:00:10]}  d2 {[%clk 0:00:13]} 41. Rf7 {[%clk 0:00:10]}  Qd4 {[%clk 0:00:13]} 42. Qf3 {[%clk 0:00:08]}  d1=Q {[%clk 0:00:09]} 43. Rf8+ {[%clk 0:00:09]}  Rxf8 {[%clk 0:00:09]} 44. Qxf8+ {[%clk 0:00:09]}  Kh7 {[%clk 0:00:10]} 45. Qf5+ {[%clk 0:00:10]}  g6 {[%clk 0:00:10]} 0-1


[Site "https://www.chess.com"]

[Event "Titled Tuesday Blitz May 10 Late 2022"]
[White "Bakalchuk, Johnatan"]
[Black "Avalos Parra, Joao"]
[WhiteFideId "2810301"]
[BlackFideId "3402541"]
[WhiteElo "2486"]
[BlackElo "2173"]
[Result "1-0"]
[Round "01"]
[TimeControl "180+1"]
[Date "2022.05.11"]
[WhiteClock "0:00:09"]
[BlackClock "0:00:15"]

1. e4 {[%clk 0:02:59]}  c6 {[%clk 0:02:58]} 2. Nc3 {[%clk 0:02:54]}  d5 {[%clk 0:02:57]} 3. exd5 {[%clk 0:02:49]}  cxd5 {[%clk 0:02:55]} 4. d4 {[%clk 0:02:49]}  Nf6 {[%clk 0:02:55]} 5. Bf4 {[%clk 0:02:49]}  a6 {[%clk 0:02:56]} 6. Bd3 {[%clk 0:02:49]}  Nc6 {[%clk 0:02:55]} 7. Nge2 {[%clk 0:02:47]}  Bg4 {[%clk 0:02:53]} 8. f3 {[%clk 0:02:48]}  Bh5 {[%clk 0:02:53]} 9. g4 {[%clk 0:02:48]}  Bg6 {[%clk 0:02:53]} 10. h4 {[%clk 0:02:49]}  Bxd3 {[%clk 0:02:52]} 11. Qxd3 {[%clk 0:02:50]}  e6 {[%clk 0:02:53]} 12. O-O-O {[%clk 0:02:49]}  Bd6 {[%clk 0:02:52]} 13. Kb1 {[%clk 0:02:49]}  Qc7 {[%clk 0:02:47]} 14. Qe3 {[%clk 0:02:47]}  O-O-O {[%clk 0:02:46]} 15. Bxd6 {[%clk 0:02:40]}  Qxd6 {[%clk 0:02:44]} 16. Nf4 {[%clk 0:02:41]}  Kb8 {[%clk 0:02:41]} 17. Nce2 {[%clk 0:02:37]}  Rhe8 {[%clk 0:02:41]} 18. Ng3 {[%clk 0:02:31]}  Nd7 {[%clk 0:02:30]} 19. g5 {[%clk 0:02:04]}  Nb6 {[%clk 0:02:29]} 20. b3 {[%clk 0:02:03]}  Qa3 {[%clk 0:02:28]} 21. Nd3 {[%clk 0:01:57]}  Rc8 {[%clk 0:02:01]} 22. Qc1 {[%clk 0:01:46]}  Qxc1+ {[%clk 0:01:58]} 23. Nxc1 {[%clk 0:01:47]}  Nb4 {[%clk 0:01:47]} 24. Rd2 {[%clk 0:01:47]}  Rc3 {[%clk 0:01:46]} 25. Rf1 {[%clk 0:01:47]}  Rec8 {[%clk 0:01:46]} 26. Rff2 {[%clk 0:01:47]}  a5 {[%clk 0:01:45]} 27. Nh5 {[%clk 0:01:42]}  g6 {[%clk 0:01:42]} 28. Nf6 {[%clk 0:01:36]}  a4 {[%clk 0:01:40]} 29. Nxh7 {[%clk 0:00:49]}  Rh8 {[%clk 0:01:37]} 30. Nf6 {[%clk 0:00:49]}  Rxh4 {[%clk 0:01:37]} 31. Kb2 {[%clk 0:00:42]}  Re3 {[%clk 0:01:28]} 32. c3 {[%clk 0:00:42]}  Nc6 {[%clk 0:01:20]} 33. Rde2 {[%clk 0:00:41]}  Rxe2+ {[%clk 0:01:12]} 34. Rxe2 {[%clk 0:00:35]}  Rf4 {[%clk 0:01:11]} 35. Rf2 {[%clk 0:00:35]}  Kc7 {[%clk 0:01:00]} 36. Nd3 {[%clk 0:00:34]}  Rh4 {[%clk 0:00:54]} 37. f4 {[%clk 0:00:31]}  Nc8 {[%clk 0:00:48]} 38. Ne5 {[%clk 0:00:29]}  Nd6 {[%clk 0:00:45]} 39. Rf3 {[%clk 0:00:12]}  Nd8 {[%clk 0:00:44]} 40. c4 {[%clk 0:00:09]}  dxc4 {[%clk 0:00:38]} 41. bxc4 {[%clk 0:00:10]}  b6 {[%clk 0:00:36]} 42. c5 {[%clk 0:00:08]}  bxc5 {[%clk 0:00:33]} 43. dxc5 {[%clk 0:00:09]}  Nb5 {[%clk 0:00:34]} 44. Ne8+ {[%clk 0:00:08]}  Kb7 {[%clk 0:00:31]} 45. Rd3 {[%clk 0:00:07]}  Rh2+ {[%clk 0:00:26]} 46. Kc1 {[%clk 0:00:09]}  Kc8 {[%clk 0:00:23]} 47. Rd7 {[%clk 0:00:01]}  Rxa2 {[%clk 0:00:19]} 48. Nd6+ {[%clk 0:00:01]}  Nxd6 {[%clk 0:00:19]} 49. cxd6 {[%clk 0:00:02]}  Rf2 {[%clk 0:00:16]} 50. Rc7+ {[%clk 0:00:03]}  Kb8 {[%clk 0:00:15]} 51. Nd7+ {[%clk 0:00:04]}  Ka8 {[%clk 0:00:15]} 52. Nb6+ {[%clk 0:00:04]}  Kb8 {[%clk 0:00:15]} 53. Nd7+ {[%clk 0:00:05]}  Ka8 {[%clk 0:00:16]} 54. Rc8+ {[%clk 0:00:06]}  Kb7 {[%clk 0:00:15]} 55. Rxd8 {[%clk 0:00:07]}  a3 {[%clk 0:00:15]} 56. Nc5+ {[%clk 0:00:07]}  Kc6 {[%clk 0:00:15]} 57. d7 {[%clk 0:00:07]}  Kxc5 {[%clk 0:00:15]} 58. Rc8+ {[%clk 0:00:07]}  Kb4 {[%clk 0:00:15]} 59. d8=Q {[%clk 0:00:08]}  Rf1+ {[%clk 0:00:15]} 60. Kc2 {[%clk 0:00:09]}  Rf2+ {[%clk 0:00:16]} 61. Kd3 {[%clk 0:00:09]}  Rf1 {[%clk 0:00:15]} 62. Qb6+ {[%clk 0:00:09]}  Ka4 {[%clk 0:00:15]} 63. Ra8# {[%clk 0:00:09]} 1-0


[Site "https://www.chess.com"]

[Event "Titled Tuesday Blitz May 10 Late 2022"]
[White "Bifulco, Michel"]
[Black "Vajda, Levente"]
[WhiteFideId "828580"]
[BlackFideId "1203975"]
[WhiteElo "2165"]
[BlackElo "2573"]
[Result "0-1"]
[Round "01"]
[TimeControl "180+1"]
[Date "2022.05.11"]
[WhiteClock "0:00:02"]
[BlackClock "0:00:12"]

1. d4 {[%clk 0:03:00]}  d5 {[%clk 0:02:59]} 2. Nc3 {[%clk 0:03:01]}  e6 {[%clk 0:02:59]} 3. Bf4 {[%clk 0:03:01]}  Nf6 {[%clk 0:02:58]} 4. Nb5 {[%clk 0:03:01]}  Na6 {[%clk 0:02:54]} 5. e3 {[%clk 0:03:01]}  c6 {[%clk 0:02:53]} 6. Nc3 {[%clk 0:03:01]}  Nc7 {[%clk 0:02:51]} 7. a3 {[%clk 0:03:01]}  Bd6 {[%clk 0:02:51]} 8. Nf3 {[%clk 0:03:02]}  O-O {[%clk 0:02:50]} 9. Ne5 {[%clk 0:03:00]}  Ne4 {[%clk 0:02:46]} 10. Nxe4 {[%clk 0:02:58]}  dxe4 {[%clk 0:02:47]} 11. c4 {[%clk 0:02:38]}  f6 {[%clk 0:02:44]} 12. c5 {[%clk 0:02:25]}  fxe5 {[%clk 0:02:35]} 13. cxd6 {[%clk 0:02:25]}  exf4 {[%clk 0:02:35]} 14. dxc7 {[%clk 0:02:25]}  Qxc7 {[%clk 0:02:35]} 15. Bc4 {[%clk 0:02:21]}  Qa5+ {[%clk 0:02:21]} 16. b4 {[%clk 0:02:13]}  Qg5 {[%clk 0:02:18]} 17. Qe2 {[%clk 0:01:43]}  fxe3 {[%clk 0:01:47]} 18. fxe3 {[%clk 0:01:42]}  b5 {[%clk 0:01:45]} 19. Bb3 {[%clk 0:01:40]}  a5 {[%clk 0:01:45]} 20. O-O-O {[%clk 0:01:24]}  axb4 {[%clk 0:01:38]} 21. axb4 {[%clk 0:01:24]}  Bd7 {[%clk 0:01:36]} 22. Kb2 {[%clk 0:01:19]}  Qe7 {[%clk 0:01:26]} 23. Kc3 {[%clk 0:01:11]}  Kh8 {[%clk 0:01:13]} 24. Rhf1 {[%clk 0:01:09]}  e5 {[%clk 0:01:10]} 25. Rxf8+ {[%clk 0:01:03]}  Rxf8 {[%clk 0:01:09]} 26. Qh5 {[%clk 0:00:47]}  Rf5 {[%clk 0:01:08]} 27. Qe2 {[%clk 0:00:26]}  exd4+ {[%clk 0:01:05]} 28. Rxd4 {[%clk 0:00:26]}  c5 {[%clk 0:01:03]} 29. bxc5 {[%clk 0:00:24]}  Rxc5+ {[%clk 0:00:57]} 30. Kb2 {[%clk 0:00:24]}  h6 {[%clk 0:00:41]} 31. Qf2 {[%clk 0:00:21]}  Rc7 {[%clk 0:00:14]} 32. Qf4 {[%clk 0:00:19]}  Qc5 {[%clk 0:00:13]} 33. Bc2 {[%clk 0:00:03]}  Qc3+ {[%clk 0:00:12]} 34. Kb1 {[%clk 0:00:03]}  Qxc2+ {[%clk 0:00:12]} 35. Ka1 {[%clk 0:00:02]}  Ra7+ {[%clk 0:00:12]} 0-1


[Site "https://www.chess.com"]

[Event "Titled Tuesday Blitz May 10 Late 2022"]
[White "Bilych, Olexiy"]
[Black "Perez Rodriguez, Jennifer"]
[WhiteFideId "14156504"]
[BlackFideId "3507831"]
[WhiteElo "2176"]
[BlackElo "2170"]
[Result "1-0"]
[Round "01"]
[TimeControl "180+1"]
[Date "2022.05.11"]
[WhiteClock "0:01:37"]
[BlackClock "0:02:04"]

1. e4 {[%clk 0:02:58]}  e5 {[%clk 0:02:59]} 2. Nf3 {[%clk 0:02:58]}  Nc6 {[%clk 0:02:59]} 3. Bc4 {[%clk 0:02:58]}  Bc5 {[%clk 0:02:57]} 4. c3 {[%clk 0:02:58]}  Nf6 {[%clk 0:02:57]} 5. d4 {[%clk 0:02:59]}  exd4 {[%clk 0:02:55]} 6. cxd4 {[%clk 0:03:00]}  Bb4+ {[%clk 0:02:54]} 7. Nbd2 {[%clk 0:02:59]}  Nxe4 {[%clk 0:02:50]} 8. d5 {[%clk 0:02:59]}  Nxd2 {[%clk 0:02:46]} 9. Bxd2 {[%clk 0:02:59]}  Bxd2+ {[%clk 0:02:45]} 10. Qxd2 {[%clk 0:03:00]}  Ne7 {[%clk 0:02:44]} 11. h4 {[%clk 0:03:00]}  d6 {[%clk 0:02:43]} 12. h5 {[%clk 0:03:00]}  h6 {[%clk 0:02:42]} 13. O-O-O {[%clk 0:03:00]}  Bf5 {[%clk 0:02:39]} 14. Qd4 {[%clk 0:02:31]}  O-O {[%clk 0:02:26]} 15. g4 {[%clk 0:02:30]}  Bh7 {[%clk 0:02:23]} 16. g5 {[%clk 0:02:28]}  Nf5 {[%clk 0:02:23]} 17. Qf4 {[%clk 0:02:25]}  hxg5 {[%clk 0:02:23]} 18. Nxg5 {[%clk 0:02:25]}  Nh6 {[%clk 0:02:16]} 19. Rdg1 {[%clk 0:01:51]}  Qe7 {[%clk 0:02:06]} 20. Nxh7 {[%clk 0:01:38]}  Kxh7 {[%clk 0:02:04]} 21. Bd3+ {[%clk 0:01:38]}  Kh8 {[%clk 0:02:04]} 22. Rxg7 {[%clk 0:01:37]} 1-0


[Site "https://www.chess.com"]

[Event "Titled Tuesday Blitz May 10 Late 2022"]
[White "Bjelobrk, Igor"]
[Black "Bernal Moro, Luis Javier"]
[WhiteFideId "4300726"]
[BlackFideId "2200236"]
[WhiteElo "2335"]
[BlackElo "2373"]
[Result "0-1"]
[Round "01"]
[TimeControl "180+1"]
[Date "2022.05.11"]
[WhiteClock "0:00:22"]
[BlackClock "0:00:15"]

1. Nf3 {[%clk 0:03:00]}  c5 {[%clk 0:02:59]} 2. c4 {[%clk 0:02:59]}  Nc6 {[%clk 0:02:57]} 3. d4 {[%clk 0:02:58]}  cxd4 {[%clk 0:02:57]} 4. Nxd4 {[%clk 0:02:59]}  Nf6 {[%clk 0:02:55]} 5. Nc3 {[%clk 0:02:57]}  e6 {[%clk 0:02:53]} 6. g3 {[%clk 0:02:56]}  Bc5 {[%clk 0:02:52]} 7. Nb3 {[%clk 0:02:55]}  Be7 {[%clk 0:02:49]} 8. Bg2 {[%clk 0:02:53]}  O-O {[%clk 0:02:47]} 9. O-O {[%clk 0:02:51]}  d6 {[%clk 0:02:45]} 10. Bf4 {[%clk 0:02:48]}  a6 {[%clk 0:02:43]} 11. Qd2 {[%clk 0:02:47]}  Qc7 {[%clk 0:02:37]} 12. Rfd1 {[%clk 0:02:40]}  Ne5 {[%clk 0:02:30]} 13. Bxe5 {[%clk 0:02:12]}  dxe5 {[%clk 0:02:28]} 14. Rac1 {[%clk 0:02:11]}  Rd8 {[%clk 0:02:23]} 15. Qe1 {[%clk 0:02:11]}  Bd7 {[%clk 0:02:22]} 16. c5 {[%clk 0:02:06]}  Bc6 {[%clk 0:02:00]} 17. Bxc6 {[%clk 0:02:05]}  Qxc6 {[%clk 0:02:00]} 18. Rxd8+ {[%clk 0:01:43]}  Rxd8 {[%clk 0:01:58]} 19. Qf1 {[%clk 0:01:44]}  Bxc5 {[%clk 0:01:37]} 20. e3 {[%clk 0:01:13]}  Be7 {[%clk 0:01:25]} 21. Qg2 {[%clk 0:01:02]}  Qxg2+ {[%clk 0:01:16]} 22. Kxg2 {[%clk 0:01:03]}  Rc8 {[%clk 0:01:05]} 23. Kf3 {[%clk 0:01:02]}  Kf8 {[%clk 0:01:02]} 24. h3 {[%clk 0:01:01]}  Bb4 {[%clk 0:00:57]} 25. Na4 {[%clk 0:00:55]}  Rxc1 {[%clk 0:00:56]} 26. Nxc1 {[%clk 0:00:56]}  Ke7 {[%clk 0:00:55]} 27. e4 {[%clk 0:00:56]}  b5 {[%clk 0:00:51]} 28. Nd3 {[%clk 0:00:56]}  Bd6 {[%clk 0:00:43]} 29. Nac5 {[%clk 0:00:54]}  a5 {[%clk 0:00:42]} 30. a4 {[%clk 0:00:49]}  bxa4 {[%clk 0:00:39]} 31. Nxa4 {[%clk 0:00:50]}  Nd7 {[%clk 0:00:37]} 32. b3 {[%clk 0:00:49]}  Nb8 {[%clk 0:00:36]} 33. Ndb2 {[%clk 0:00:47]}  Nc6 {[%clk 0:00:35]} 34. Nc4 {[%clk 0:00:47]}  Nd4+ {[%clk 0:00:34]} 35. Ke3 {[%clk 0:00:45]}  Nxb3 {[%clk 0:00:35]} 36. f3 {[%clk 0:00:39]}  Nc5 {[%clk 0:00:34]} 37. Nxc5 {[%clk 0:00:36]}  Bxc5+ {[%clk 0:00:34]} 38. Kd3 {[%clk 0:00:37]}  a4 {[%clk 0:00:31]} 39. Nxe5 {[%clk 0:00:37]}  Bd6 {[%clk 0:00:30]} 40. Nc4 {[%clk 0:00:31]}  Bxg3 {[%clk 0:00:29]} 41. Kc3 {[%clk 0:00:31]}  Bd6 {[%clk 0:00:28]} 42. Nb6 {[%clk 0:00:26]}  a3 {[%clk 0:00:27]} 43. Kb3 {[%clk 0:00:27]}  Bc5 {[%clk 0:00:24]} 44. Na4 {[%clk 0:00:26]}  Kd6 {[%clk 0:00:24]} 45. f4 {[%clk 0:00:21]}  Kc6 {[%clk 0:00:23]} 46. Nc3 {[%clk 0:00:20]}  f6 {[%clk 0:00:22]} 47. Kc4 {[%clk 0:00:20]}  e5 {[%clk 0:00:20]} 48. f5 {[%clk 0:00:20]}  Bd4 {[%clk 0:00:20]} 49. Na2 {[%clk 0:00:20]}  Bb2 {[%clk 0:00:20]} 50. Nb4+ {[%clk 0:00:20]}  Kd6 {[%clk 0:00:18]} 51. Na2 {[%clk 0:00:20]}  g6 {[%clk 0:00:17]} 52. fxg6 {[%clk 0:00:20]}  hxg6 {[%clk 0:00:17]} 53. Nb4 {[%clk 0:00:21]}  f5 {[%clk 0:00:17]} 54. exf5 {[%clk 0:00:22]}  gxf5 {[%clk 0:00:17]} 55. h4 {[%clk 0:00:22]}  Ke6 {[%clk 0:00:18]} 56. h5 {[%clk 0:00:23]}  Kf6 {[%clk 0:00:18]} 57. Kd5 {[%clk 0:00:23]}  e4 {[%clk 0:00:17]} 58. Kc4 {[%clk 0:00:23]}  Kg5 {[%clk 0:00:17]} 59. Nc2 {[%clk 0:00:22]}  Kxh5 {[%clk 0:00:17]} 60. Ne3 {[%clk 0:00:23]}  Kg5 {[%clk 0:00:17]} 61. Kb3 {[%clk 0:00:23]}  f4 {[%clk 0:00:17]} 62. Nc2 {[%clk 0:00:22]}  e3 {[%clk 0:00:16]} 63. Ne1 {[%clk 0:00:22]}  Kg4 {[%clk 0:00:17]} 64. Kc2 {[%clk 0:00:22]}  f3 {[%clk 0:00:16]} 65. Nd3 {[%clk 0:00:22]}  f2 {[%clk 0:00:15]} 0-1


[Site "https://www.chess.com"]

[Event "Titled Tuesday Blitz May 10 Late 2022"]
[White "Bortnyk, Olexandr"]
[Black "Vovk, Orest"]
[WhiteFideId "14120828"]
[BlackFideId "14113490"]
[WhiteElo "2723"]
[BlackElo "2203"]
[Result "1-0"]
[Round "01"]
[TimeControl "180+1"]
[Date "2022.05.10"]
[WhiteClock "0:00:29"]
[BlackClock "0:00:12"]

1. d4 {[%clk 0:03:00]}  e5 {[%clk 0:02:57]} 2. dxe5 {[%clk 0:03:00]}  Nc6 {[%clk 0:02:57]} 3. Nf3 {[%clk 0:03:00]}  Qe7 {[%clk 0:02:57]} 4. Bf4 {[%clk 0:03:00]}  Qb4+ {[%clk 0:02:57]} 5. Bd2 {[%clk 0:03:00]}  Qxb2 {[%clk 0:02:57]} 6. Nc3 {[%clk 0:03:01]}  Bb4 {[%clk 0:02:57]} 7. Rb1 {[%clk 0:03:02]}  Qxc3 {[%clk 0:02:56]} 8. Bxc3 {[%clk 0:03:02]}  Bxc3+ {[%clk 0:02:57]} 9. Nd2 {[%clk 0:03:03]}  Nxe5 {[%clk 0:02:57]} 10. e3 {[%clk 0:03:04]}  Nf6 {[%clk 0:02:57]} 11. Bd3 {[%clk 0:03:04]}  d5 {[%clk 0:02:58]} 12. O-O {[%clk 0:03:04]}  O-O {[%clk 0:02:58]} 13. h3 {[%clk 0:03:05]}  c6 {[%clk 0:02:58]} 14. f4 {[%clk 0:03:05]}  Ned7 {[%clk 0:02:50]} 15. g4 {[%clk 0:03:02]}  Nc5 {[%clk 0:02:48]} 16. g5 {[%clk 0:03:03]}  Nfe4 {[%clk 0:02:42]} 17. Bxe4 {[%clk 0:02:57]}  dxe4 {[%clk 0:02:34]} 18. Nb3 {[%clk 0:02:56]}  Na4 {[%clk 0:02:19]} 19. Kg2 {[%clk 0:02:54]}  Be6 {[%clk 0:02:04]} 20. f5 {[%clk 0:02:55]}  Bc4 {[%clk 0:02:00]} 21. Qg4 {[%clk 0:02:47]}  Bxf1+ {[%clk 0:01:51]} 22. Rxf1 {[%clk 0:02:48]}  Rfe8 {[%clk 0:01:48]} 23. Rd1 {[%clk 0:02:43]}  Nb6 {[%clk 0:01:38]} 24. Nc5 {[%clk 0:02:43]}  Nd5 {[%clk 0:01:36]} 25. Kf2 {[%clk 0:02:44]}  Re5 {[%clk 0:01:03]} 26. Nxe4 {[%clk 0:02:42]}  Ba5 {[%clk 0:00:54]} 27. c4 {[%clk 0:01:52]}  Rxe4 {[%clk 0:00:49]} 28. Qxe4 {[%clk 0:01:50]}  Nc3 {[%clk 0:00:50]} 29. Qd4 {[%clk 0:01:40]}  Nxd1+ {[%clk 0:00:50]} 30. Qxd1 {[%clk 0:01:40]}  Rd8 {[%clk 0:00:49]} 31. Qb3 {[%clk 0:01:26]}  Bb6 {[%clk 0:00:50]} 32. c5 {[%clk 0:01:27]}  Bxc5 {[%clk 0:00:49]} 33. Qxb7 {[%clk 0:01:27]}  Re8 {[%clk 0:00:32]} 34. Qxc6 {[%clk 0:01:27]}  Bxe3+ {[%clk 0:00:31]} 35. Kf3 {[%clk 0:01:25]}  Kf8 {[%clk 0:00:32]} 36. Qd6+ {[%clk 0:00:55]}  Kg8 {[%clk 0:00:30]} 37. h4 {[%clk 0:00:50]}  h6 {[%clk 0:00:27]} 38. Qd7 {[%clk 0:00:46]}  Kf8 {[%clk 0:00:25]} 39. g6 {[%clk 0:00:47]}  Re7 {[%clk 0:00:17]} 40. Qd8+ {[%clk 0:00:34]}  Re8 {[%clk 0:00:17]} 41. Qd6+ {[%clk 0:00:28]}  Re7 {[%clk 0:00:13]} 42. f6 {[%clk 0:00:28]}  gxf6 {[%clk 0:00:12]} 43. g7+ {[%clk 0:00:29]} 1-0


[Site "https://www.chess.com"]